Workbook

Sheet Feuil1
C1: R | D1: V | E1: B | F1: C | G1: M | H1: J | I1: BL | J1: LP
A2: 1 | B2: A01 | C2: 10 | D2: 234 | E2: 255 | F2: =24*(1-(C2/255)) -> 23.05882353 | G2: =25*(1-(D2/255)) -> 2.058823529 | H2: =26*(1-(E2/255)) -> 0 | I2: =100-F2-G2-H2 -> 74.88235294 | J2: =(((0.3*C2)+(0.6*D2)+(0.1*E2))/255)*100 -> 66.23529412
A3: 2 | B3: A02 | C3: 18 | D3: 1 | E3: 250 | F3: =24*(1-(C3/255)) -> 22.30588235 | G3: =25*(1-(D3/255)) -> 24.90196078 | H3: =26*(1-(E3/255)) -> 0.5098039216 | I3: =100-F3-G3-H3 -> 52.28235294 | J3: =(((0.3*C3)+(0.6*D3)+(0.1*E3))/255)*100 -> 12.15686275
A4: 3 | B4: A03 | C4: 73 | D4: 206 | E4: 66 | F4: 17.12941176 | G4: 4.803921569 | H4: 19.27058824 | I4: 58.79607843 | J4: 59.64705882
A5: 4 | B5: A04 | C5: 216 | D5: 26 | E5: 202 | F5: 3.670588235 | G5: 22.45098039 | H5: 5.403921569 | I5: 68.4745098 | J5: 39.45098039
A6: 5 | B6: A05 | C6: 242 | D6: 248 | E6: 234 | F6: 1.223529412 | G6: 0.6862745098 | H6: 2.141176471 | I6: 95.94901961 | J6: 96
A7: 6 | B7: A06 | C7: 239 | D7: 147 | E7: 186 | F7: 1.505882353 | G7: 10.58823529 | H7: 7.035294118 | I7: 80.87058824 | J7: 70
A8: 7 | B8: A07 | C8: 152 | D8: 151 | E8: 156 | F8: 9.694117647 | G8: 10.19607843 | H8: 10.09411765 | I8: 70.01568627 | J8: 59.52941176
A9: 8 | B9: A08 | C9: 152 | D9: 150 | E9: 154 | F9: 9.694117647 | G9: 10.29411765 | H9: 10.29803922 | I9: 69.71372549 | J9: 59.21568627
A10: 9 | B10: A09 | C10: 149 | D10: 148 | E10: 150 | F10: 9.976470588 | G10: 10.49019608 | H10: 10.70588235 | I10: 68.82745098 | J10: 58.23529412
A11: 10 | B11: A10 | C11: 131 | D11: 129 | E11: 130 | F11: 11.67058824 | G11: 12.35294118 | H11: 12.74509804 | I11: 63.23137255 | J11: 50.8627451
A12: 1 | B12: B01 | C12: 202 | D12: 197 | E12: 193 | F12: 4.988235294 | G12: 5.68627451 | H12: 6.321568627 | I12: 83.00392157 | J12: 77.68627451
A13: 2 | B13: B02 | C13: 158 | D13: 130 | E13: 139 | F13: 9.129411765 | G13: 12.25490196 | H13: 11.82745098 | I13: 66.78823529 | J13: 54.62745098
A14: 3 | B14: B03 | C14: 156 | D14: 124 | E14: 136 | F14: 9.317647059 | G14: 12.84313725 | H14: 12.13333333 | I14: 65.70588235 | J14: 52.8627451
A15: 4 | B15: B04 | C15: 147 | D15: 140 | E15: 127 | F15: 10.16470588 | G15: 11.2745098 | H15: 13.05098039 | I15: 65.50980392 | J15: 55.21568627
A16: 5 | B16: B05 | C16: 116 | D16: 120 | E16: 117 | F16: 13.08235294 | G16: 13.23529412 | H16: 14.07058824 | I16: 59.61176471 | J16: 46.47058824
A17: 6 | B17: B06 | C17: 191 | D17: 199 | E17: 206 | F17: 6.023529412 | G17: 5.490196078 | H17: 4.996078431 | I17: 83.49019608 | J17: 77.37254902
A18: 7 | B18: B07 | C18: 192 | D18: 198 | E18: 206 | F18: 5.929411765 | G18: 5.588235294 | H18: 4.996078431 | I18: 83.48627451 | J18: 77.25490196
A19: 8 | B19: B08 | C19: 184 | D19: 191 | E19: 200 | F19: 6.682352941 | G19: 6.274509804 | H19: 5.607843137 | I19: 81.43529412 | J19: 74.43137255
A20: 9 | B20: B09 | C20: 175 | D20: 180 | E20: 188 | F20: 7.529411765 | G20: 7.352941176 | H20: 6.831372549 | I20: 78.28627451 | J20: 70.31372549
A21: 10 | B21: B10 | C21: 157 | D21: 159 | E21: 164 | F21: 9.223529412 | G21: 9.411764706 | H21: 9.278431373 | I21: 72.08627451 | J21: 62.31372549
A22: 1 | B22: C01 | C22: 202 | D22: 197 | E22: 186 | F22: 4.988235294 | G22: 5.68627451 | H22: 7.035294118 | I22: 82.29019608 | J22: 77.41176471
A23: 2 | B23: C02 | C23: 216 | D23: 213 | E23: 207 | F23: 3.670588235 | G23: 4.117647059 | H23: 4.894117647 | I23: 87.31764706 | J23: 83.64705882
A24: 3 | B24: C03 | C24: 213 | D24: 217 | E24: 204 | F24: 3.952941176 | G24: 3.725490196 | H24: 5.2 | I24: 87.12156863 | J24: 84.11764706
A25: 4 | B25: C04 | C25: 185 | D25: 202 | E25: 168 | F25: 6.588235294 | G25: 5.196078431 | H25: 8.870588235 | I25: 79.34509804 | J25: 75.88235294
A26: 5 | B26: C05 | C26: 168 | D26: 170 | E26: 164 | F26: 8.188235294 | G26: 8.333333333 | H26: 9.278431373 | I26: 74.2 | J26: 66.19607843
A27: 6 | B27: C06 | C27: 213 | D27: 221 | E27: 224 | F27: 3.952941176 | G27: 3.333333333 | H27: 3.160784314 | I27: 89.55294118 | J27: 85.84313725
A28: 7 | B28: C07 | C28: 212 | D28: 222 | E28: 226 | F28: 4.047058824 | G28: 3.235294118 | H28: 2.956862745 | I28: 89.76078431 | J28: 86.03921569
A29: 8 | B29: C08 | C29: 200 | D29: 210 | E29: 218 | F29: 5.176470588 | G29: 4.411764706 | H29: 3.77254902 | I29: 86.63921569 | J29: 81.49019608
A30: 9 | B30: C09 | C30: 184 | D30: 191 | E30: 201 | F30: 6.682352941 | G30: 6.274509804 | H30: 5.505882353 | I30: 81.5372549 | J30: 74.47058824
A31: 10 | B31: C10 | C31: 167 | D31: 170 | E31: 176 | F31: 8.282352941 | G31: 8.333333333 | H31: 8.054901961 | I31: 75.32941176 | J31: 66.54901961
A32: 1 | B32: D01 | C32: 10 | D32: 234 | E32: 255 | F32: 23.05882353 | G32: 2.058823529 | H32: 0 | I32: 74.88235294 | J32: 66.23529412
A33: 2 | B33: D02 | C33: 78 | D33: 49 | E33: 18 | F33: 16.65882353 | G33: 20.19607843 | H33: 24.16470588 | I33: 38.98039216 | J33: 21.41176471
A34: 61 | B34: D03 | C34: 97 | D34: 67 | E34: 36 | F34: 14.87058824 | G34: 18.43137255 | H34: 22.32941176 | I34: 44.36862745 | J34: 28.58823529
A35: 4 | B35: D04 | C35: 87 | D35: 62 | E35: 29 | F35: 15.81176471 | G35: 18.92156863 | H35: 23.04313725 | I35: 42.22352941 | J35: 25.96078431
A36: 5 | B36: D05 | C36: 80 | D36: 62 | E36: 39 | F36: 16.47058824 | G36: 18.92156863 | H36: 22.02352941 | I36: 42.58431373 | J36: 25.52941176
A37: 6 | B37: D06 | C37: 143 | D37: 143 | E37: 143 | F37: 10.54117647 | G37: 10.98039216 | H37: 11.41960784 | I37: 67.05882353 | J37: 56.07843137
A38: 7 | B38: D07 | C38: 160 | D38: 160 | E38: 165 | F38: 8.941176471 | G38: 9.31372549 | H38: 9.176470588 | I38: 72.56862745 | J38: 62.94117647
A39: 8 | B39: D08 | C39: 165 | D39: 162 | E39: 164 | F39: 8.470588235 | G39: 9.117647059 | H39: 9.278431373 | I39: 73.13333333 | J39: 63.96078431
A40: 9 | B40: D09 | C40: 164 | D40: 162 | E40: 164 | F40: 8.564705882 | G40: 9.117647059 | H40: 9.278431373 | I40: 73.03921569 | J40: 63.84313725
A41: 10 | B41: D10 | C41: 163 | D41: 161 | E41: 165 | F41: 8.658823529 | G41: 9.215686275 | H41: 9.176470588 | I41: 72.94901961 | J41: 63.52941176
A42: 1 | B42: E01 | C42: 92 | D42: 55 | E42: 25 | F42: 15.34117647 | G42: 19.60784314 | H42: 23.45098039 | I42: 41.6 | J42: 24.74509804
A43: 2 | B43: E02 | C43: 83 | D43: 52 | E43: 23 | F43: 16.18823529 | G43: 19.90196078 | H43: 23.65490196 | I43: 40.25490196 | J43: 22.90196078
A44: 3 | B44: E03 | C44: 94 | D44: 65 | E44: 28 | F44: 15.15294118 | G44: 18.62745098 | H44: 23.14509804 | I44: 43.0745098 | J44: 27.45098039
A45: 4 | B45: E04 | C45: 90 | D45: 63 | E45: 32 | F45: 15.52941176 | G45: 18.82352941 | H45: 22.7372549 | I45: 42.90980392 | J45: 26.66666667
A46: 5 | B46: E05 | C46: 85 | D46: 66 | E46: 39 | F46: 16 | G46: 18.52941176 | H46: 22.02352941 | I46: 43.44705882 | J46: 27.05882353
A47: 6 | B47: E06 | C47: 142 | D47: 138 | E47: 132 | F47: 10.63529412 | G47: 11.47058824 | H47: 12.54117647 | I47: 65.35294118 | J47: 54.35294118
A48: 7 | B48: E07 | C48: 157 | D48: 157 | E48: 157 | F48: 9.223529412 | G48: 9.607843137 | H48: 9.992156863 | I48: 71.17647059 | J48: 61.56862745
A49: 8 | B49: E08 | C49: 168 | D49: 159 | E49: 144 | F49: 8.188235294 | G49: 9.411764706 | H49: 11.31764706 | I49: 71.08235294 | J49: 62.82352941
A50: 9 | B50: E09 | C50: 157 | D50: 154 | E50: 154 | F50: 9.223529412 | G50: 9.901960784 | H50: 10.29803922 | I50: 70.57647059 | J50: 60.74509804
A51: 10 | B51: E10 | C51: 149 | D51: 143 | E51: 142 | F51: 9.976470588 | G51: 10.98039216 | H51: 11.52156863 | I51: 67.52156863 | J51: 56.74509804
A52: 1 | B52: F01 | C52: 87 | D52: 53 | E52: 21 | F52: 15.81176471 | G52: 19.80392157 | H52: 23.85882353 | I52: 40.5254902 | J52: 23.52941176
A53: 2 | B53: F02 | C53: 85 | D53: 54 | E53: 18 | F53: 16 | G53: 19.70588235 | H53: 24.16470588 | I53: 40.12941176 | J53: 23.41176471
A54: 3 | B54: F03 | C54: 89 | D54: 58 | E54: 23 | F54: 15.62352941 | G54: 19.31372549 | H54: 23.65490196 | I54: 41.40784314 | J54: 25.01960784
A55: 4 | B55: F04 | C55: 72 | D55: 46 | E55: 16 | F55: 17.22352941 | G55: 20.49019608 | H55: 24.36862745 | I55: 37.91764706 | J55: 19.92156863
A56: 5 | B56: F05 | C56: 73 | D56: 55 | E56: 33 | F56: 17.12941176 | G56: 19.60784314 | H56: 22.63529412 | I56: 40.62745098 | J56: 22.82352941
A57: 6 | B57: F06 | C57: 139 | D57: 134 | E57: 125 | F57: 10.91764706 | G57: 11.8627451 | H57: 13.25490196 | I57: 63.96470588 | J57: 52.78431373
A58: 7 | B58: F07 | C58: 157 | D58: 154 | E58: 155 | F58: 9.223529412 | G58: 9.901960784 | H58: 10.19607843 | I58: 70.67843137 | J58: 60.78431373
A59: 8 | B59: F08 | C59: 170 | D59: 156 | E59: 136 | F59: 8 | G59: 9.705882353 | H59: 12.13333333 | I59: 70.16078431 | J59: 62.03921569
A60: 9 | B60: F09 | C60: 161 | D60: 158 | E60: 158 | F60: 8.847058824 | G60: 9.509803922 | H60: 9.890196078 | I60: 71.75294118 | J60: 62.31372549
A61: 10 | B61: F10 | C61: 140 | D61: 135 | E61: 137 | F61: 10.82352941 | G61: 11.76470588 | H61: 12.03137255 | I61: 65.38039216 | J61: 53.60784314
A62: 1 | B62: G01 | C62: 90 | D62: 56 | E62: 24 | F62: 15.52941176 | G62: 19.50980392 | H62: 23.55294118 | I62: 41.40784314 | J62: 24.70588235
A63: 2 | B63: G02 | C63: 94 | D63: 62 | E63: 25 | F63: 15.15294118 | G63: 18.92156863 | H63: 23.45098039 | I63: 42.4745098 | J63: 26.62745098
A64: 3 | B64: G03 | C64: 79 | D64: 52 | E64: 21 | F64: 16.56470588 | G64: 19.90196078 | H64: 23.85882353 | I64: 39.6745098 | J64: 22.35294118
A65: 4 | B65: G04 | C65: 70 | D65: 48 | E65: 20 | F65: 17.41176471 | G65: 20.29411765 | H65: 23.96078431 | I65: 38.33333333 | J65: 20.31372549
A66: 5 | B66: G05 | C66: 76 | D66: 57 | E66: 32 | F66: 16.84705882 | G66: 19.41176471 | H66: 22.7372549 | I66: 41.00392157 | J66: 23.60784314
A67: 6 | B67: G06 | C67: 137 | D67: 133 | E67: 122 | F67: =24*(1-(C67/255)) -> 11.10588235 | G67: =25*(1-(D67/255)) -> 11.96078431 | H67: =26*(1-(E67/255)) -> 13.56078431 | I67: =100-F67-G67-H67 -> 63.37254902 | J67: =(((0.3*C67)+(0.6*D67)+(0.1*E67))/255)*100 -> 52.19607843
A68: 7 | B68: G07 | C68: 155 | D68: 152 | E68: 152 | F68: 9.411764706 | G68: 10.09803922 | H68: 10.50196078 | I68: 69.98823529 | J68: 59.96078431
A69: 8 | B69: G08 | C69: 169 | D69: 154 | E69: 138 | F69: 8.094117647 | G69: 9.901960784 | H69: 11.92941176 | I69: 70.0745098 | J69: 61.52941176
A70: 9 | B70: G09 | C70: 161 | D70: 158 | E70: 157 | F70: 8.847058824 | G70: 9.509803922 | H70: 9.992156863 | I70: 71.65098039 | J70: 62.2745098
A71: 10 | B71: G10 | C71: 161 | D71: 158 | E71: 158 | F71: 8.847058824 | G71: 9.509803922 | H71: 9.890196078 | I71: 71.75294118 | J71: 62.31372549
A72: 1 | B72: H01 | C72: 102 | D72: 66 | E72: 29 | F72: 14.4 | G72: 18.52941176 | H72: 23.04313725 | I72: 44.02745098 | J72: 28.66666667
A73: 2 | B73: H02 | C73: 115 | D73: 82 | E73: 38 | F73: 13.17647059 | G73: 16.96078431 | H73: 22.1254902 | I73: 47.7372549 | J73: 34.31372549
A74: 3 | B74: H03 | C74: 93 | D74: 65 | E74: 28 | F74: 15.24705882 | G74: 18.62745098 | H74: 23.14509804 | I74: 42.98039216 | J74: 27.33333333
A75: 4 | B75: H04 | C75: 80 | D75: 56 | E75: 25 | F75: 16.47058824 | G75: 19.50980392 | H75: 23.45098039 | I75: 40.56862745 | J75: 23.56862745
A76: 5 | B76: H05 | C76: 84 | D76: 64 | E76: 38 | F76: 16.09411765 | G76: 18.7254902 | H76: 22.1254902 | I76: 43.05490196 | J76: 26.43137255
A77: 6 | B77: H06 | C77: 140 | D77: 132 | E77: 125 | F77: 10.82352941 | G77: 12.05882353 | H77: 13.25490196 | I77: 63.8627451 | J77: 52.43137255
A78: 7 | B78: H07 | C78: 157 | D78: 148 | E78: 145 | F78: 9.223529412 | G78: 10.49019608 | H78: 11.21568627 | I78: 69.07058824 | J78: 58.98039216
A79: 8 | B79: H08 | C79: 155 | D79: 148 | E79: 144 | F79: 9.411764706 | G79: 10.49019608 | H79: 11.31764706 | I79: 68.78039216 | J79: 58.70588235
A80: 9 | B80: H09 | C80: 161 | D80: 155 | E80: 155 | F80: 8.847058824 | G80: 9.803921569 | H80: 10.19607843 | I80: 71.15294118 | J80: 61.49019608
A81: 10 | B81: H10 | C81: 158 | D81: 154 | E81: 155 | F81: 9.129411765 | G81: 9.901960784 | H81: 10.19607843 | I81: 70.77254902 | J81: 60.90196078
A82: 1 | B82: I01 | C82: 137 | D82: 93 | E82: 46 | F82: 11.10588235 | G82: 15.88235294 | H82: 21.30980392 | I82: 51.70196078 | J82: 39.80392157
A83: 2 | B83: I02 | C83: 132 | D83: 93 | E83: 45 | F83: 11.57647059 | G83: 15.88235294 | H83: 21.41176471 | I83: 51.12941176 | J83: 39.17647059
A84: 3 | B84: I03 | C84: 123 | D84: 88 | E84: 42 | F84: 12.42352941 | G84: 16.37254902 | H84: 21.71764706 | I84: 49.48627451 | J84: 36.82352941
A85: 4 | B85: I04 | C85: 110 | D85: 77 | E85: 35 | F85: 13.64705882 | G85: 17.45098039 | H85: 22.43137255 | I85: 46.47058824 | J85: 32.43137255
A86: 5 | B86: I05 | C86: 107 | D86: 81 | E86: 45 | F86: 13.92941176 | G86: 17.05882353 | H86: 21.41176471 | I86: 47.6 | J86: 33.41176471
A87: 6 | B87: I06 | C87: 146 | D87: 130 | E87: 112 | F87: 10.25882353 | G87: 12.25490196 | H87: 14.58039216 | I87: 62.90588235 | J87: 52.15686275
A88: 7 | B88: I07 | C88: 159 | D88: 145 | E88: 134 | F88: 9.035294118 | G88: 10.78431373 | H88: 12.3372549 | I88: 67.84313725 | J88: 58.07843137
A89: 8 | B89: I08 | C89: 155 | D89: 149 | E89: 148 | F89: 9.411764706 | G89: 10.39215686 | H89: 10.90980392 | I89: 69.28627451 | J89: 59.09803922
A90: 9 | B90: I09 | C90: 157 | D90: 151 | E90: 149 | F90: 9.223529412 | G90: 10.19607843 | H90: 10.80784314 | I90: 69.77254902 | J90: 59.84313725
A91: 10 | B91: I10 | C91: 152 | D91: 146 | E91: 144 | F91: 9.694117647 | G91: 10.68627451 | H91: 11.31764706 | I91: 68.30196078 | J91: 57.88235294
A92: 1 | B92: J01 | C92: 213 | D92: 187 | E92: 153 | F92: 3.952941176 | G92: 6.666666667 | H92: 10.4 | I92: 78.98039216 | J92: 75.05882353
A93: 2 | B93: J02 | C93: 219 | D93: 199 | E93: 164 | F93: 3.388235294 | G93: 5.490196078 | H93: 9.278431373 | I93: 81.84313725 | J93: 79.01960784
A94: 3 | B94: J03 | C94: 234 | D94: 219 | E94: 191 | F94: 1.976470588 | G94: 3.529411765 | H94: 6.525490196 | I94: 87.96862745 | J94: 86.54901961
A95: 4 | B95: J04 | C95: 208 | D95: 197 | E95: 162 | F95: 4.423529412 | G95: 5.68627451 | H95: 9.482352941 | I95: 80.40784314 | J95: 77.17647059
A96: 5 | B96: J05 | C96: 196 | D96: 186 | E96: 153 | F96: 5.552941176 | G96: 6.764705882 | H96: 10.4 | I96: 77.28235294 | J96: 72.82352941
A97: 6 | B97: J06 | C97: 217 | D97: 216 | E97: 202 | F97: 3.576470588 | G97: 3.823529412 | H97: 5.403921569 | I97: 87.19607843 | J97: 84.2745098
A98: 7 | B98: J07 | C98: 219 | D98: 216 | E98: 207 | F98: 3.388235294 | G98: 3.823529412 | H98: 4.894117647 | I98: 87.89411765 | J98: 84.70588235
A99: 8 | B99: J08 | C99: 215 | D99: 209 | E99: 204 | F99: 3.764705882 | G99: 4.509803922 | H99: 5.2 | I99: 86.5254902 | J99: 82.47058824
A100: 9 | B100: J09 | C100: 199 | D100: 195 | E100: 193 | F100: 5.270588235 | G100: 5.882352941 | H100: 6.321568627 | I100: 82.5254902 | J100: 76.8627451
A101: 10 | B101: J10 | C101: 187 | D101: 181 | E101: 177 | F101: 6.4 | G101: 7.254901961 | H101: 7.952941176 | I101: 78.39215686 | J101: 71.52941176

Sheet blanc

Sheet tri 1

Sheet tri 2

Sheet tri 3

Sheet tri 4

Sheet tri 5
